[Event "*** Titled Tuesday Blitz"]
[Site "Chess.com"]
[Date "2021.02.02"]
[Round "10"]
[White "Ajedrez_con_German"]
[Black "muchojogo"]
[Result "0-1"]
[WhiteElo "2596"]
[BlackElo "2491"]
[TimeControl "180+1"]
[EndTime "11:56:59 PST"]
[Termination "muchojogo won on time"]

1. d4 {[%clk 0:03:00.9]} 1... Nf6 {[%clk 0:02:59.7]} 2. Nf3 {[%clk 0:02:58.7]}
2... e6 {[%clk 0:02:58.9]} 3. c4 {[%clk 0:02:57.4]} 3... d5 {[%clk 0:02:58.7]}
4. Nc3 {[%clk 0:02:56.4]} 4... c5 {[%clk 0:02:59.1]} 5. e3 {[%clk 0:02:55.9]}
5... cxd4 {[%clk 0:02:59.1]} 6. Nxd4 {[%clk 0:02:49.7]} 6... dxc4 {[%clk
0:02:52.2]} 7. Bxc4 {[%clk 0:02:49.2]} 7... a6 {[%clk 0:02:52.9]} 8. O-O {[%clk
0:02:48]} 8... b6 {[%clk 0:02:53]} 9. b3 {[%clk 0:02:36.6]} 9... b5 {[%clk
0:02:52.8]} 10. Be2 {[%clk 0:02:34.6]} 10... Bb7 {[%clk 0:02:53.4]} 11. Bb2
{[%clk 0:02:33.1]} 11... Be7 {[%clk 0:02:53.1]} 12. Bf3 {[%clk 0:02:32.8]} 12...
Qb6 {[%clk 0:02:48.9]} 13. Rc1 {[%clk 0:02:17]} 13... O-O {[%clk 0:02:48.5]} 14.
a4 {[%clk 0:02:16.9]} 14... b4 {[%clk 0:02:43.2]} 15. a5 {[%clk 0:02:17.2]}
15... Qa7 {[%clk 0:02:31.4]} 16. Na4 {[%clk 0:02:13.9]} 16... Bxf3 {[%clk
0:02:26.7]} 17. Qxf3 {[%clk 0:02:13.5]} 17... Bd8 {[%clk 0:02:01.1]} 18. Nc2
{[%clk 0:01:46.5]} 18... Nbd7 {[%clk 0:01:51.5]} 19. Nxb4 {[%clk 0:01:30]} 19...
Qb8 {[%clk 0:01:08.2]} 20. Bc3 {[%clk 0:00:51.1]} 20... Bxa5 {[%clk 0:01:01.4]}
21. Nc6 {[%clk 0:00:51.1]} 21... Qxb3 {[%clk 0:01:01.4]} 22. Bxf6 {[%clk
0:00:25.7]} 22... Nxf6 {[%clk 0:00:34.7]} 23. Nc5 {[%clk 0:00:23.8]} 23... Qb5
{[%clk 0:00:34.9]} 24. Nxa5 {[%clk 0:00:20.5]} 24... Qxa5 {[%clk 0:00:35.8]} 25.
Ne4 {[%clk 0:00:20.1]} 25... Nxe4 {[%clk 0:00:33.2]} 26. Qxe4 {[%clk 0:00:21]}
26... Rac8 {[%clk 0:00:32.9]} 27. Ra1 {[%clk 0:00:20.5]} 27... Qb5 {[%clk
0:00:29.4]} 28. h3 {[%clk 0:00:19.2]} 28... Rc4 {[%clk 0:00:26.2]} 29. Qd3
{[%clk 0:00:16.4]} 29... Rfc8 {[%clk 0:00:26.3]} 30. Qa3 {[%clk 0:00:15.9]}
30... h6 {[%clk 0:00:25]} 31. Qxa6 {[%clk 0:00:15.4]} 31... Qxa6 {[%clk
0:00:25.3]} 32. Rxa6 {[%clk 0:00:16.3]} 32... Rc2 {[%clk 0:00:25.5]} 33. Ra7
{[%clk 0:00:16.3]} 33... Rb2 {[%clk 0:00:23.5]} 34. Ra4 {[%clk 0:00:14.1]} 34...
Rcc2 {[%clk 0:00:23.6]} 35. Rf4 {[%clk 0:00:14]} 35... e5 {[%clk 0:00:20.9]} 36.
Rf5 {[%clk 0:00:13.5]} 36... f6 {[%clk 0:00:21]} 37. g3 {[%clk 0:00:12.5]} 37...
Kf7 {[%clk 0:00:20.4]} 38. h4 {[%clk 0:00:12.4]} 38... Ke6 {[%clk 0:00:20.6]}
39. Rf3 {[%clk 0:00:11.3]} 39... g5 {[%clk 0:00:21]} 40. hxg5 {[%clk 0:00:10.2]}
40... hxg5 {[%clk 0:00:21.9]} 41. e4 {[%clk 0:00:08.9]} 41... Re2 {[%clk
0:00:21.1]} 42. Rc1 {[%clk 0:00:06.9]} 42... Rb6 {[%clk 0:00:15]} 43. Rc4 {[%clk
0:00:05.5]} 43... Rd6 {[%clk 0:00:15.2]} 44. Kg2 {[%clk 0:00:05.3]} 44... Kf7
{[%clk 0:00:12.9]} 45. Rfc3 {[%clk 0:00:04.6]} 45... Rdd2 {[%clk 0:00:11.2]} 46.
Rf3 {[%clk 0:00:04.4]} 46... g4 {[%clk 0:00:11.6]} 47. Rf5 {[%clk 0:00:04.4]}
47... Rd6 {[%clk 0:00:09.6]} 48. Rc7+ {[%clk 0:00:03.8]} 48... Kg6 {[%clk
0:00:10]} 49. Rc8 {[%clk 0:00:03.9]} 49... Rxe4 {[%clk 0:00:09.8]} 0-1

[Event "*** Titled Tuesday Blitz"]
[Site "Chess.com"]
[Date "2021.02.02"]
[Round "10"]
[White "SharapovEvgeny"]
[Black "scarabee43"]
[Result "1-0"]
[WhiteElo "2468"]
[BlackElo "2563"]
[TimeControl "180+1"]
[EndTime "11:57:01 PST"]
[Termination "SharapovEvgeny won by checkmate"]

1. c4 {[%clk 0:02:58.8]} 1... e6 {[%clk 0:02:59.8]} 2. Nc3 {[%clk 0:02:57.8]}
2... d5 {[%clk 0:03:00.2]} 3. cxd5 {[%clk 0:02:57.8]} 3... exd5 {[%clk
0:02:59.8]} 4. d4 {[%clk 0:02:57.8]} 4... Nf6 {[%clk 0:02:59.9]} 5. Nf3 {[%clk
0:02:57.6]} 5... Be7 {[%clk 0:02:59.9]} 6. Qc2 {[%clk 0:02:57.1]} 6... O-O
{[%clk 0:03:00.1]} 7. Bg5 {[%clk 0:02:56]} 7... c6 {[%clk 0:02:58]} 8. e3 {[%clk
0:02:55.7]} 8... Re8 {[%clk 0:02:57.6]} 9. Bd3 {[%clk 0:02:55]} 9... Nbd7 {[%clk
0:02:56.5]} 10. O-O {[%clk 0:02:53.9]} 10... Nf8 {[%clk 0:02:56.8]} 11. Rab1
{[%clk 0:02:53]} 11... a5 {[%clk 0:02:55.7]} 12. a3 {[%clk 0:02:52.4]} 12... g6
{[%clk 0:02:55.2]} 13. b4 {[%clk 0:02:49.8]} 13... Ne6 {[%clk 0:02:55.3]} 14.
Bh4 {[%clk 0:02:41.5]} 14... Ng7 {[%clk 0:02:51.6]} 15. Bxf6 {[%clk 0:02:36.4]}
15... Bxf6 {[%clk 0:02:51]} 16. b5 {[%clk 0:02:36.6]} 16... Bf5 {[%clk
0:02:50.6]} 17. bxc6 {[%clk 0:02:34.2]} 17... bxc6 {[%clk 0:02:50.2]} 18. Na4
{[%clk 0:02:30.5]} 18... Bxd3 {[%clk 0:02:48.7]} 19. Qxd3 {[%clk 0:02:30.1]}
19... Nf5 {[%clk 0:02:48.7]} 20. Rfc1 {[%clk 0:02:27.4]} 20... Rc8 {[%clk
0:02:47.3]} 21. Nc5 {[%clk 0:02:21.2]} 21... Nd6 {[%clk 0:02:46.4]} 22. Nb7
{[%clk 0:02:16.3]} 22... Qc7 {[%clk 0:02:35.2]} 23. Nxd6 {[%clk 0:02:15.5]}
23... Qxd6 {[%clk 0:02:35.2]} 24. Rb6 {[%clk 0:02:04.4]} 24... Be7 {[%clk
0:02:21.5]} 25. a4 {[%clk 0:01:56.8]} 25... Bd8 {[%clk 0:01:52.4]} 26. Rb7
{[%clk 0:01:51.6]} 26... Bc7 {[%clk 0:01:40.4]} 27. g3 {[%clk 0:01:48.8]} 27...
Rb8 {[%clk 0:01:37.4]} 28. Rxb8 {[%clk 0:01:45]} 28... Rxb8 {[%clk 0:01:37.5]}
29. Ne5 {[%clk 0:01:42]} 29... Rb6 {[%clk 0:01:37.7]} 30. Qc3 {[%clk 0:01:35]}
30... Rb4 {[%clk 0:00:57.7]} 31. Qxc6 {[%clk 0:01:10]} 31... Qxc6 {[%clk
0:00:52.9]} 32. Nxc6 {[%clk 0:01:09.3]} 32... Rc4 {[%clk 0:00:50.8]} 33. Rxc4
{[%clk 0:01:06.2]} 33... dxc4 {[%clk 0:00:51.3]} 34. Kf1 {[%clk 0:01:06.3]}
34... Kf8 {[%clk 0:00:51.8]} 35. Ke2 {[%clk 0:01:05.7]} 35... Ke8 {[%clk
0:00:52.1]} 36. Ne5 {[%clk 0:00:46.4]} 36... c3 {[%clk 0:00:40.2]} 37. Kd3
{[%clk 0:00:45.8]} 37... Bd6 {[%clk 0:00:36.6]} 38. Kxc3 {[%clk 0:00:44.8]}
38... Bb4+ {[%clk 0:00:37.2]} 39. Kc4 {[%clk 0:00:43.7]} 39... f6 {[%clk
0:00:35.1]} 40. Nd3 {[%clk 0:00:40.4]} 40... Bd2 {[%clk 0:00:35.4]} 41. Kd5
{[%clk 0:00:38.2]} 41... Kd7 {[%clk 0:00:35.9]} 42. e4 {[%clk 0:00:37.8]} 42...
Bc3 {[%clk 0:00:35.2]} 43. f4 {[%clk 0:00:37.1]} 43... Bd2 {[%clk 0:00:32.9]}
44. e5 {[%clk 0:00:36.7]} 44... fxe5 {[%clk 0:00:33.5]} 45. fxe5 {[%clk
0:00:35.8]} 45... Ke7 {[%clk 0:00:32.5]} 46. Kc6 {[%clk 0:00:33.4]} 46... Be3
{[%clk 0:00:30.5]} 47. d5 {[%clk 0:00:33.3]} 47... Bg1 {[%clk 0:00:30.3]} 48. h3
{[%clk 0:00:32.5]} 48... Bh2 {[%clk 0:00:29.6]} 49. g4 {[%clk 0:00:32.4]} 49...
Kd8 {[%clk 0:00:26]} 50. d6 {[%clk 0:00:31.5]} 50... Bg3 {[%clk 0:00:26.2]} 51.
e6 {[%clk 0:00:31.2]} 51... Bh4 {[%clk 0:00:26.3]} 52. Ne5 {[%clk 0:00:28.9]}
52... Bf6 {[%clk 0:00:22.6]} 53. Nf7+ {[%clk 0:00:28.4]} 53... Ke8 {[%clk
0:00:23.2]} 54. d7+ {[%clk 0:00:28.2]} 54... Kf8 {[%clk 0:00:22.8]} 55. d8=Q+
{[%clk 0:00:27.2]} 55... Bxd8 {[%clk 0:00:23.2]} 56. Nxd8 {[%clk 0:00:27.2]}
56... Ke7 {[%clk 0:00:23.8]} 57. Kd5 {[%clk 0:00:25.5]} 57... Kxd8 {[%clk
0:00:23.6]} 58. Kd6 {[%clk 0:00:25.5]} 58... Ke8 {[%clk 0:00:21.5]} 59. g5
{[%clk 0:00:24.8]} 59... Kd8 {[%clk 0:00:20.2]} 60. e7+ {[%clk 0:00:24.9]} 60...
Ke8 {[%clk 0:00:20.6]} 61. Ke6 {[%clk 0:00:25.1]} 61... h5 {[%clk 0:00:20.6]}
62. gxh6 {[%clk 0:00:25.1]} 62... g5 {[%clk 0:00:21.1]} 63. h7 {[%clk
0:00:25.3]} 63... g4 {[%clk 0:00:21.5]} 64. h8=Q# {[%clk 0:00:25.3]} 1-0

[Event "*** Titled Tuesday Blitz"]
[Site "Chess.com"]
[Date "2021.02.02"]
[Round "10"]
[White "jens1102"]
[Black "fabianvivasz"]
[Result "0-1"]
[WhiteElo "2410"]
[BlackElo "2325"]
[TimeControl "180+1"]
[EndTime "11:57:01 PST"]
[Termination "fabianvivasz won by resignation"]

1. Nf3 {[%clk 0:03:00.9]} 1... c5 {[%clk 0:02:55.1]} 2. g3 {[%clk 0:03:00.5]}
2... g6 {[%clk 0:02:47.4]} 3. Bg2 {[%clk 0:03:00.9]} 3... Bg7 {[%clk 0:02:47.5]}
4. O-O {[%clk 0:03:01.7]} 4... Nf6 {[%clk 0:02:47.5]} 5. c4 {[%clk 0:03:01.5]}
5... O-O {[%clk 0:02:45.5]} 6. Nc3 {[%clk 0:03:02.2]} 6... d5 {[%clk 0:02:45.6]}
7. cxd5 {[%clk 0:03:02.4]} 7... Nxd5 {[%clk 0:02:46.5]} 8. e4 {[%clk 0:03:00.3]}
8... Nb4 {[%clk 0:02:45.3]} 9. Ne1 {[%clk 0:02:45.4]} 9... N8c6 {[%clk
0:02:43.8]} 10. a3 {[%clk 0:02:44.7]} 10... Nd3 {[%clk 0:02:37.3]} 11. Nd5
{[%clk 0:02:38.8]} 11... Nxe1 {[%clk 0:02:33.1]} 12. Rxe1 {[%clk 0:02:34.9]}
12... e6 {[%clk 0:01:57.2]} 13. Nc3 {[%clk 0:02:24.9]} 13... Nd4 {[%clk
0:01:54.1]} 14. d3 {[%clk 0:02:24.5]} 14... b6 {[%clk 0:01:49]} 15. Be3 {[%clk
0:02:12.5]} 15... Ba6 {[%clk 0:01:46.4]} 16. Rc1 {[%clk 0:02:00]} 16... Bxd3
{[%clk 0:01:39.8]} 17. Bg5 {[%clk 0:01:37.2]} 17... Qxg5 {[%clk 0:01:32.6]} 18.
f4 {[%clk 0:01:35.4]} 18... Qe7 {[%clk 0:00:54.1]} 19. Qxd3 {[%clk 0:01:34.5]}
19... Rad8 {[%clk 0:00:54.5]} 20. Rcd1 {[%clk 0:01:26.7]} 20... Qc7 {[%clk
0:00:44.6]} 21. e5 {[%clk 0:01:24.8]} 21... c4 {[%clk 0:00:33.7]} 22. Qe4 {[%clk
0:01:21.6]} 22... Nf5 {[%clk 0:00:25.6]} 23. Kh1 {[%clk 0:01:14.4]} 23... Rxd1
{[%clk 0:00:23.5]} 24. Rxd1 {[%clk 0:01:14.9]} 24... Rd8 {[%clk 0:00:23.1]} 25.
Rxd8+ {[%clk 0:01:10.7]} 25... Qxd8 {[%clk 0:00:23.1]} 26. Qxc4 {[%clk
0:01:07.2]} 26... Bf8 {[%clk 0:00:16.9]} 27. Qe4 {[%clk 0:00:53.1]} 27... Qd2
{[%clk 0:00:15.6]} 28. Qe2 {[%clk 0:00:46.4]} 28... Qc1+ {[%clk 0:00:15.4]} 29.
Bf1 {[%clk 0:00:37.9]} 29... Ne3 {[%clk 0:00:13.4]} 30. Kg1 {[%clk 0:00:35.3]}
30... Bc5 {[%clk 0:00:13.2]} 31. Ne4 {[%clk 0:00:31]} 31... Bd4 {[%clk
0:00:11.2]} 32. Qd3 {[%clk 0:00:19.6]} 32... Nxf1+ {[%clk 0:00:03.6]} 33. Qxd4
{[%clk 0:00:19]} 33... Nxg3+ {[%clk 0:00:03.3]} 34. Kg2 {[%clk 0:00:13.8]} 34...
Nxe4 {[%clk 0:00:03.5]} 35. Qxe4 {[%clk 0:00:13.5]} 35... Qc7 {[%clk 0:00:02.2]}
36. Qd4 {[%clk 0:00:12.8]} 36... Kg7 {[%clk 0:00:02.1]} 37. h4 {[%clk
0:00:13.1]} 37... Qc5 {[%clk 0:00:02.2]} 38. Qd8 {[%clk 0:00:11.8]} 38... Qd5+
{[%clk 0:00:02.3]} 39. Qxd5 {[%clk 0:00:11.6]} 39... exd5 {[%clk 0:00:03.2]} 40.
Kf3 {[%clk 0:00:12.3]} 40... Kf8 {[%clk 0:00:03.1]} 41. f5 {[%clk 0:00:07]}
41... gxf5 {[%clk 0:00:02.6]} 42. Kf4 {[%clk 0:00:07.2]} 42... d4 {[%clk
0:00:02.6]} 43. b4 {[%clk 0:00:04.4]} 43... Ke7 {[%clk 0:00:03]} 44. b5 {[%clk
0:00:05.2]} 44... h5 {[%clk 0:00:03.1]} 45. a4 {[%clk 0:00:06.1]} 45... Ke6
{[%clk 0:00:03.5]} 46. Kf3 {[%clk 0:00:07]} 46... Kxe5 {[%clk 0:00:03.9]} 47.
Ke2 {[%clk 0:00:07.9]} 47... Kd5 {[%clk 0:00:04.5]} 48. Kd3 {[%clk 0:00:08.2]}
48... f4 {[%clk 0:00:05.1]} 49. a5 {[%clk 0:00:08.4]} 49... bxa5 {[%clk
0:00:05.2]} 50. Kd2 {[%clk 0:00:08.4]} 50... a4 {[%clk 0:00:05.8]} 51. Kd3
{[%clk 0:00:09.3]} 51... a3 {[%clk 0:00:06.3]} 52. b6 {[%clk 0:00:10.2]} 52...
axb6 {[%clk 0:00:06.5]} 0-1

[Event "*** Titled Tuesday Blitz"]
[Site "Chess.com"]
[Date "2021.02.02"]
[Round "10"]
[White "motivated_bishop"]
[Black "jacky72"]
[Result "0-1"]
[WhiteElo "2428"]
[BlackElo "2686"]
[TimeControl "180+1"]
[EndTime "11:57:02 PST"]
[Termination "jacky72 won by resignation"]

1. d4 {[%clk 0:03:00.9]} 1... Nf6 {[%clk 0:02:59.8]} 2. c4 {[%clk 0:03:00.9]}
2... g6 {[%clk 0:02:59.8]} 3. Nc3 {[%clk 0:03:01.1]} 3... Bg7 {[%clk 0:03:00.4]}
4. e4 {[%clk 0:03:01.4]} 4... O-O {[%clk 0:03:01.3]} 5. f3 {[%clk 0:03:01.8]}
5... d6 {[%clk 0:03:01.3]} 6. Be3 {[%clk 0:03:02.1]} 6... c5 {[%clk 0:03:01.9]}
7. dxc5 {[%clk 0:03:02.5]} 7... dxc5 {[%clk 0:03:01.7]} 8. Qxd8 {[%clk
0:03:03.4]} 8... Rxd8 {[%clk 0:03:01.3]} 9. Bxc5 {[%clk 0:03:04.3]} 9... Nc6
{[%clk 0:03:02.1]} 10. Nge2 {[%clk 0:03:04]} 10... Nd7 {[%clk 0:03:00.5]} 11.
Bf2 {[%clk 0:03:04]} 11... Nde5 {[%clk 0:02:59.3]} 12. Nf4 {[%clk 0:03:04.3]}
12... Nb4 {[%clk 0:02:59.7]} 13. Rd1 {[%clk 0:03:03.3]} 13... Rxd1+ {[%clk
0:02:50.9]} 14. Kxd1 {[%clk 0:03:03.2]} 14... e6 {[%clk 0:02:44.7]} 15. a3
{[%clk 0:02:58.9]} 15... Nbc6 {[%clk 0:02:43.6]} 16. Kc2 {[%clk 0:02:56.4]}
16... b6 {[%clk 0:02:40.8]} 17. Be2 {[%clk 0:02:34.2]} 17... Ba6 {[%clk
0:02:41.1]} 18. b3 {[%clk 0:02:33.7]} 18... g5 {[%clk 0:02:34.9]} 19. Nh5 {[%clk
0:02:29.7]} 19... Bh8 {[%clk 0:02:28.4]} 20. Rd1 {[%clk 0:02:29.5]} 20... Kf8
{[%clk 0:02:25.1]} 21. h4 {[%clk 0:02:28.3]} 21... h6 {[%clk 0:02:15.6]} 22. Be3
{[%clk 0:02:22.5]} 22... f6 {[%clk 0:02:11.3]} 23. f4 {[%clk 0:02:12.5]} 23...
Nf7 {[%clk 0:02:00.8]} 24. b4 {[%clk 0:01:38.7]} 24... Bb7 {[%clk 0:02:00.4]}
25. Rd7 {[%clk 0:01:31.5]} 25... Ncd8 {[%clk 0:01:45.5]} 26. c5 {[%clk
0:01:26.1]} 26... gxf4 {[%clk 0:01:25.6]} 27. Nxf4 {[%clk 0:01:21]} 27... Ke8
{[%clk 0:01:25.7]} 28. Rc7 {[%clk 0:01:17.6]} 28... f5 {[%clk 0:01:09.5]} 29.
Bb5+ {[%clk 0:01:03.4]} 29... Kf8 {[%clk 0:01:07]} 30. Ng6+ {[%clk 0:01:02.8]}
30... Kg7 {[%clk 0:01:05.3]} 31. Nxh8 {[%clk 0:01:01.9]} 31... Kxh8 {[%clk
0:01:06.2]} 32. c6 {[%clk 0:00:43.9]} 32... Bc8 {[%clk 0:01:06.1]} 33. Bf4
{[%clk 0:00:42.5]} 33... e5 {[%clk 0:01:01.8]} 34. Bd2 {[%clk 0:00:40.3]} 34...
Be6 {[%clk 0:00:55.5]} 35. Re7 {[%clk 0:00:38.4]} 35... a6 {[%clk 0:00:47.6]}
36. Bd3 {[%clk 0:00:20.9]} 36... Nxc6 {[%clk 0:00:47]} 37. Rc7 {[%clk
0:00:11.4]} 37... Nd4+ {[%clk 0:00:46.9]} 38. Kb2 {[%clk 0:00:11.8]} 38... Kg8
{[%clk 0:00:43]} 39. exf5 {[%clk 0:00:11.5]} 39... Bxf5 {[%clk 0:00:43.9]} 40.
Bxf5 {[%clk 0:00:11.5]} 40... Nxf5 {[%clk 0:00:44.8]} 41. Ne4 {[%clk 0:00:11.9]}
41... Rd8 {[%clk 0:00:43.4]} 42. Bc3 {[%clk 0:00:10.5]} 42... Nxh4 {[%clk
0:00:36.5]} 43. Nf6+ {[%clk 0:00:10.5]} 43... Kg7 {[%clk 0:00:36.8]} 44. Bxe5
{[%clk 0:00:09.9]} 44... Kg6 {[%clk 0:00:34.3]} 45. Bc3 {[%clk 0:00:09.1]} 45...
Nxg2 {[%clk 0:00:31.2]} 46. Rc6 {[%clk 0:00:09.5]} 46... Rd6 {[%clk 0:00:31.7]}
47. Rxd6 {[%clk 0:00:07.5]} 47... Nxd6 {[%clk 0:00:32.6]} 48. Nd5 {[%clk
0:00:07]} 48... b5 {[%clk 0:00:31.9]} 49. Nc7 {[%clk 0:00:07.3]} 49... h5 {[%clk
0:00:28.1]} 50. Nxa6 {[%clk 0:00:07.5]} 50... h4 {[%clk 0:00:28.7]} 51. Kb3
{[%clk 0:00:07.8]} 51... Kf5 {[%clk 0:00:27.5]} 52. Be1 {[%clk 0:00:04.8]} 52...
h3 {[%clk 0:00:27.9]} 53. Bg3 {[%clk 0:00:05.2]} 53... Ne4 {[%clk 0:00:27.9]}
54. Bh2 {[%clk 0:00:05.3]} 54... Ne3 {[%clk 0:00:28.3]} 55. Nc7 {[%clk
0:00:04.6]} 55... Nf1 {[%clk 0:00:28.3]} 56. Bg1 {[%clk 0:00:04.4]} 56... Ned2+
{[%clk 0:00:28.9]} 57. Kc2 {[%clk 0:00:04.3]} 57... Nf3 {[%clk 0:00:29.8]} 58.
Kd1 {[%clk 0:00:03.1]} 58... Nxg1 {[%clk 0:00:29.6]} 59. Ke1 {[%clk 0:00:03.7]}
59... h2 {[%clk 0:00:30.5]} 0-1

[Event "*** Titled Tuesday Blitz"]
[Site "Chess.com"]
[Date "2021.02.02"]
[Round "10"]
[White "AlexTriapishko"]
[Black "remi04"]
[Result "1-0"]
[WhiteElo "2889"]
[BlackElo "2614"]
[TimeControl "180+1"]
[EndTime "11:57:03 PST"]
[Termination "AlexTriapishko won by resignation"]

1. d4 {[%clk 0:03:00.9]} 1... d5 {[%clk 0:02:59.8]} 2. c4 {[%clk 0:03:00.8]}
2... c6 {[%clk 0:02:59.9]} 3. Nf3 {[%clk 0:03:01.2]} 3... Nf6 {[%clk 0:03:00.2]}
4. Nc3 {[%clk 0:03:01.8]} 4... e6 {[%clk 0:03:00.6]} 5. Qd3 {[%clk 0:02:58.5]}
5... Nbd7 {[%clk 0:02:52.2]} 6. e4 {[%clk 0:02:56.6]} 6... dxe4 {[%clk
0:02:52.1]} 7. Nxe4 {[%clk 0:02:57.5]} 7... Nxe4 {[%clk 0:02:52.7]} 8. Qxe4
{[%clk 0:02:58.1]} 8... Nf6 {[%clk 0:02:53.6]} 9. Qe3 {[%clk 0:02:55.8]} 9...
Bb4+ {[%clk 0:02:50.9]} 10. Bd2 {[%clk 0:02:55.6]} 10... Qa5 {[%clk 0:02:51.4]}
11. Bd3 {[%clk 0:02:52.3]} 11... O-O {[%clk 0:02:48.8]} 12. a3 {[%clk
0:02:47.8]} 12... Bxd2+ {[%clk 0:02:48.6]} 13. Qxd2 {[%clk 0:02:48.7]} 13... Qc7
{[%clk 0:02:43.3]} 14. Qe3 {[%clk 0:02:41.9]} 14... b6 {[%clk 0:02:38.1]} 15.
Qe5 {[%clk 0:02:39.8]} 15... Qe7 {[%clk 0:02:35.7]} 16. O-O {[%clk 0:02:37.4]}
16... Bb7 {[%clk 0:02:33.9]} 17. Rfe1 {[%clk 0:02:37.3]} 17... Rad8 {[%clk
0:02:30.5]} 18. Rad1 {[%clk 0:02:33.2]} 18... h6 {[%clk 0:02:26.1]} 19. Nh4
{[%clk 0:01:51.5]} 19... Qd6 {[%clk 0:02:16.6]} 20. c5 {[%clk 0:01:40.6]} 20...
Qxe5 {[%clk 0:02:12.3]} 21. dxe5 {[%clk 0:01:41.5]} 21... Nd7 {[%clk 0:02:04.5]}
22. cxb6 {[%clk 0:01:41.7]} 22... axb6 {[%clk 0:02:04.4]} 23. f4 {[%clk
0:01:38.1]} 23... Nc5 {[%clk 0:01:59.4]} 24. Bc2 {[%clk 0:01:33.8]} 24... Ba6
{[%clk 0:01:53.5]} 25. Nf3 {[%clk 0:01:05.1]} 25... Bd3 {[%clk 0:01:52.7]} 26.
Rd2 {[%clk 0:01:03.8]} 26... Bxc2 {[%clk 0:01:34.1]} 27. Rxc2 {[%clk 0:01:04.7]}
27... Nd3 {[%clk 0:01:32.1]} 28. Re4 {[%clk 0:01:04.8]} 28... c5 {[%clk
0:01:27.2]} 29. g3 {[%clk 0:01:05]} 29... Rd5 {[%clk 0:01:24.6]} 30. Kf1 {[%clk
0:01:04.9]} 30... Rfd8 {[%clk 0:01:23]} 31. Ke2 {[%clk 0:01:05.2]} 31... b5
{[%clk 0:01:22.1]} 32. b3 {[%clk 0:01:00.2]} 32... Ra8 {[%clk 0:01:10.8]} 33.
Rc3 {[%clk 0:00:57.3]} 33... Nb2 {[%clk 0:01:02.6]} 34. Rc2 {[%clk 0:00:56.6]}
34... Nd3 {[%clk 0:00:57.8]} 35. Re3 {[%clk 0:00:54.6]} 35... c4 {[%clk
0:00:48.3]} 36. bxc4 {[%clk 0:00:54.8]} 36... bxc4 {[%clk 0:00:47.7]} 37. Nd2
{[%clk 0:00:55.4]} 37... Rxa3 {[%clk 0:00:25.7]} 38. Nxc4 {[%clk 0:00:55.6]}
38... Rb3 {[%clk 0:00:24.5]} 39. Nd2 {[%clk 0:00:54.4]} 39... Ra3 {[%clk
0:00:20.3]} 40. Nc4 {[%clk 0:00:52.2]} 40... Rb3 {[%clk 0:00:20]} 41. Nd6 {[%clk
0:00:52.8]} 41... Rb2 {[%clk 0:00:14.9]} 42. Rxb2 {[%clk 0:00:48.5]} 42... Nxb2
{[%clk 0:00:15.1]} 43. Rb3 {[%clk 0:00:48.7]} 43... Na4 {[%clk 0:00:15.6]} 44.
Rb8+ {[%clk 0:00:45.7]} 44... Kh7 {[%clk 0:00:16]} 45. Nxf7 {[%clk 0:00:46.3]}
45... Nc3+ {[%clk 0:00:16]} 46. Ke3 {[%clk 0:00:46.4]} 46... Nd1+ {[%clk
0:00:15.7]} 47. Kf3 {[%clk 0:00:44.3]} 47... Kg6 {[%clk 0:00:15.7]} 48. Nd8
{[%clk 0:00:40.6]} 48... Rd3+ {[%clk 0:00:09]} 49. Ke2 {[%clk 0:00:38.1]} 49...
Rd7 {[%clk 0:00:07.1]} 50. Nxe6 {[%clk 0:00:36.8]} 50... Kf5 {[%clk 0:00:07.2]}
51. Nc5 {[%clk 0:00:22.8]} 51... Nc3+ {[%clk 0:00:06.4]} 52. Kf3 {[%clk
0:00:23.3]} 52... Rd5 {[%clk 0:00:05.8]} 53. Rf8+ {[%clk 0:00:23.6]} 53... Kg6
{[%clk 0:00:06]} 54. e6 {[%clk 0:00:20.2]} 54... Rxc5 {[%clk 0:00:02.5]} 55. e7
{[%clk 0:00:20.7]} 1-0